bitfinex/quotes_SOLUSD_20250413
["timestamp","ask_amount","ask_price","bid_price","bid_amount"]
[1744564974040,7.5976,131.62,131.58,39.44892706]
[1744564974349,7.5976,131.62,131.59,39.44892706]
[1744564974534,39.44892706,131.61,131.57,7.59e-05]
[1744564974849,66.04052706,131.62,131.57,39.44900296]
[1744564975051,39.44892706,131.6,131.57,7.59e-05]
[1744564976148,7.597,131.63,131.57,39.44900296]
[1744564976357,47.04592706,131.63,131.57,39.44900296]
[1744564976536,66.03852706,131.63,131.57,7.59e-05]
[1744564976726,39.44892706,131.6,131.57,7.59e-05]
[1744564976932,18.64964886,131.62,131.57,7.59e-05]
[1744564977133,39.44892706,131.59,131.57,7.59e-05]
[1744564977942,18.64964886,131.62,131.57,7.59e-05]
[1744564978141,7.5999,131.58,131.57,7.59e-05]
[1744564978342,39.44892706,131.59,131.57,7.59e-05]
[1744564978654,26.0,131.64,131.57,7.59e-05]
[1744564978853,39.44892706,131.6,131.57,7.59e-05]
[1744564979349,26.0,131.62,131.57,7.59e-05]
[1744564979557,39.44892706,131.58,131.57,7.59e-05]
[1744564979773,26.0,131.62,131.57,7.59e-05]
[1744564979973,39.44892706,131.58,131.57,7.59e-05]
[1744564980453,47.04882706,131.58,131.57,7.59e-05]
[1744564981161,65.98279906,131.58,131.57,7.59e-05]
[1744564981340,63.48279906,131.58,131.57,7.59e-05]
[1744564981734,7.5999,131.58,131.57,7.59e-05]
[1744564982156,47.04882706,131.58,131.57,7.59e-05]
[1744564983258,18.9941,131.62,131.57,39.44900296]
[1744564983461,7.5958,131.65,131.59,39.44892706]
[1744564983663,7.6254,131.66,131.63,39.44892706]
[1744564983850,7.6254,131.66,131.61,39.44892706]
[1744564983851,26.6137,131.66,131.61,39.44892706]
[1744564984261,26.6137,131.66,131.6,39.44892706]
[1744564984565,0.03,131.66,131.65,39.44892706]
[1744564984869,0.03,131.66,131.6,39.44892706]
[1744564985074,0.03,131.66,131.57,7.6002759]
[1744564985239,39.44892706,131.65,131.59,39.44892706]
[1744564985435,39.44892706,131.65,131.6,39.44892706]
[1744564985657,0.03,131.66,131.61,39.44892706]
[1744564985847,0.03,131.66,131.65,39.44892706]
[1744564987264,0.03,131.66,131.65,47.04472706]
[1744564987943,0.03,131.66,131.65,39.44892706]
[1744564988445,0.03,131.66,131.65,66.12086063]
[1744564988644,0.03,131.72,131.65,125.55948769]
[1744564988868,0.03,131.72,131.71,39.44892706]
[1744564989961,0.03,131.72,131.68,39.44892706]
[1744564990171,7.6219,131.72,131.65,7.5958]
[1744564990359,7.6219,131.72,131.63,18.79181043]
[1744564990539,39.44892706,131.71,131.64,7.5964]
[1744564990852,39.44892706,131.7,131.6,39.44892706]
[1744564991052,39.44892706,131.7,131.65,39.44892706]
[1744564991346,39.44892706,131.7,131.64,39.44892706]
[1744564991938,47.04242706,131.69,131.64,39.44892706]
[1744564992137,7.5935,131.69,131.64,39.44892706]
[1744564992341,7.5935,131.69,131.65,39.44892706]
[1744564993165,7.5935,131.69,131.64,39.44892706]
[1744564993361,39.44892706,131.68,131.63,39.44892706]
[1744564994364,39.44892706,131.69,131.64,39.44892706]
[1744564994550,19.011,131.72,131.66,39.44892706]
[1744564994551,58.45992706,131.72,131.66,39.44892706]
[1744564994751,58.45992706,131.72,131.61,260.64]
[1744564994752,7.5924,131.71,131.67,39.44892706]
[1744564994948,39.44892706,131.69,131.64,39.44892706]
[1744564995160,39.44892706,131.69,131.63,39.44892706]
[1744564995479,39.44892706,131.67,131.57,18.9999759]
[1744564995777,39.44892706,131.69,131.63,39.44892706]
[1744564995945,39.44892706,131.68,131.62,39.44892706]
[1744564996361,7.5947,131.67,131.62,39.44892706]
[1744564996962,7.5947,131.67,131.63,39.44892706]
[1744564997173,7.622,131.72,131.66,39.44892706]
[1744564997465,0.03,131.72,131.7,39.44892706]
[1744564997764,0.03,131.72,131.69,39.44892706]
[1744564997765,7.622,131.72,131.69,39.44892706]
[1744564997958,7.622,131.72,131.68,39.44892706]
[1744564998159,39.44892706,131.69,131.58,26.39171043]
[1744564998368,0.03,131.72,131.64,39.44892706]
[1744564998667,39.44892706,131.69,131.61,7.598]
[1744564998851,39.44892706,131.67,131.62,39.44892706]
[1744564999052,0.31432314,131.72,131.62,39.44892706]
[1744564999269,39.44892706,131.68,131.62,39.44892706]
[1744564999581,39.44892706,131.65,131.58,7.5997]
[1744564999875,39.44892706,131.66,131.6,39.44892706]
[1744565000081,39.44892706,131.65,131.58,7.5997]
[1744565000264,39.44892706,131.66,131.6,39.44892706]
[1744565000581,39.44892706,131.67,131.62,39.44892706]
[1744565000752,39.44892706,131.66,131.6,39.44892706]
[1744565000949,7.5935,131.69,131.61,39.44892706]
[1744565001153,7.5935,131.69,131.66,39.44892706]
[1744565001358,39.44892706,131.67,131.59,7.5992]
[1744565001572,39.44892706,131.63,131.57,39.44900296]
[1744565001867,39.44892706,131.64,131.59,39.44892706]
[1744565002051,39.44892706,131.64,131.58,39.44892706]
[1744565002253,18.933972,131.67,131.57,39.44900296]
[1744565002484,39.44892706,131.61,131.57,7.59e-05]
[1744565002665,39.44892706,131.6,131.57,7.59e-05]
[1744565002865,39.44892706,131.59,131.57,7.59e-05]
[1744565003081,39.44892706,131.58,131.57,7.59e-05]
[1744565003281,26.5916,131.62,131.57,7.59e-05]
[1744565003456,39.44892706,131.58,131.57,7.59e-05]
[1744565003666,18.933972,131.61,131.57,7.59e-05]
[1744565003978,39.44892706,131.58,131.57,7.59e-05]
[1744565004179,18.933972,131.61,131.57,7.59e-05]
[1744565004392,39.44892706,131.58,131.57,7.59e-05]
[1744565004672,47.04882706,131.58,131.56,0.063]
[1744565004876,7.5999,131.58,131.56,39.51192706]
[1744565005174,7.5999,131.58,131.56,0.063]
[1744565005663,39.44892706,131.57,131.56,0.063]
[1744565005866,47.04882706,131.58,131.56,0.063]
[1744565006168,7.5976,131.62,131.56,39.51192706]
[1744565006375,47.04652706,131.62,131.56,0.063]
[1744565006571,7.5976,131.62,131.58,39.44892706]
[1744565006884,7.5964,131.64,131.58,39.44892706]
[1744565007083,26.5875,131.64,131.56,0.063]
[1744565007259,26.5875,131.64,131.56,39.51192706]
[1744565007461,39.44892706,131.62,131.57,39.44892706]
[1744565007665,39.44892706,131.61,131.56,39.51192706]
[1744565007874,26.5875,131.64,131.57,39.44892706]
[1744565008059,39.44892706,131.63,131.57,39.44892706]
[1744565008255,39.44892706,131.62,131.57,39.44892706]
[1744565008572,47.04712706,131.61,131.56,0.063]
[1744565008773,39.44892706,131.6,131.56,0.063]
[1744565008978,26.5937,131.61,131.56,0.063]
[1744565009284,39.44892706,131.58,131.56,0.063]
[1744565009654,26.5937,131.61,131.56,0.063]
[1744565009870,39.44892706,131.6,131.56,0.063]
[1744565010473,7.5992,131.6,131.56,0.063]
[1744565011174,47.04592706,131.63,131.58,39.44892706]
[1744565011360,39.44892706,131.62,131.57,39.44892706]
[1744565011960,26.0,131.59,131.56,0.063]
[1744565012181,39.44892706,131.57,131.56,0.063]
[1744565012678,47.04882706,131.58,131.56,0.063]
[1744565012865,39.44892706,131.57,131.56,0.063]
[1744565013572,9.2325,131.58,131.56,0.063]
[1744565013781,7.5995,131.59,131.56,0.063]
[1744565013955,7.5964,131.64,131.56,0.063]
[1744565014272,1.6326,131.65,131.61,39.44892706]
[1744565014477,20.6434,131.72,131.63,39.44892706]
[1744565014673,20.6434,131.72,131.67,39.44892706]
[1744565014674,7.5924,131.71,131.67,39.44892706]
[1744565014857,39.44892706,131.69,131.6,39.44892706]
[1744565015057,7.5924,131.71,131.6,26.5956]
[1744565015260,47.04132706,131.71,131.65,39.44892706]
[1744565015778,39.44892706,131.69,131.6,66.04452706]
[1744565015959,39.44892706,131.66,131.6,7.5987]
[1744565016158,39.44892706,131.68,131.62,39.44892706]
[1744565016369,39.44892706,131.68,131.63,39.44892706]
[1744565016559,26.5734,131.71,131.6,26.5956]
[1744565016560,39.44892706,131.67,131.6,7.5987]
[1744565016771,47.04422706,131.66,131.61,39.44892706]
[1744565017170,39.44892706,131.66,131.61,47.04702706]
[1744565017486,1.6626,131.72,131.65,39.44892706]
[1744565017669,1.6626,131.72,131.67,39.44892706]
[1744565017867,9.2546,131.72,131.68,39.44892706]
[1744565018183,9.2546,131.72,131.67,39.44892706]
[1744565018385,48.70352706,131.72,131.67,39.44892706]
[1744565018689,9.2546,131.72,131.62,47.04602706]
[1744565018882,39.44892706,131.66,131.59,7.5993]
[1744565019070,39.44892706,131.62,131.57,7.6005]
[1744565019388,0.28432314,131.66,131.56,7.6639]
[1744565019566,39.44892706,131.59,131.56,0.063]
[1744565019959,44.64964886,131.63,131.56,0.063]
[1744565020160,39.44892706,131.59,131.56,0.063]
[1744565020378,0.42648471,131.65,131.56,0.063]
[1744565020379,39.44892706,131.57,131.56,0.063]
[1744565020579,18.64964886,131.63,131.56,0.063]
[1744565020859,39.44892706,131.6,131.56,0.063]
[1744565021060,39.44892706,131.57,131.56,0.063]
[1744565021358,39.44892706,131.6,131.56,0.063]
[1744565021562,39.44892706,131.58,131.56,0.063]
[1744565022488,26.5916,131.62,131.56,0.063]
[1744565022489,39.44892706,131.57,131.56,0.063]
[1744565022673,39.44892706,131.58,131.56,0.063]
[1744565022987,26.0,131.64,131.57,39.44892706]
[1744565023164,39.44892706,131.63,131.58,39.44892706]
[1744565023364,39.44892706,131.63,131.56,0.063]
[1744565023665,39.44892706,131.62,131.57,39.44892706]
[1744565023870,39.44892706,131.61,131.56,0.063]
[1744565024085,26.5896,131.63,131.56,0.063]
[1744565024584,39.44892706,131.6,131.56,0.063]
[1744565024887,39.44892706,131.61,131.56,39.51192706]
[1744565025272,33.597,131.63,131.58,39.44892706]
[1744565025472,73.04592706,131.63,131.56,0.063]
[1744565025675,73.04592706,131.63,131.58,39.44892706]
[1744565025880,73.04592706,131.63,131.57,39.44892706]
[1744565026187,47.04592706,131.63,131.58,39.44892706]
[1744565026384,47.04592706,131.63,131.56,7.6638]
[1744565026575,47.04592706,131.63,131.58,39.44892706]
[1744565026775,39.44892706,131.62,131.57,39.44892706]
[1744565027178,47.04672706,131.62,131.57,39.44892706]
[1744565027378,7.5978,131.62,131.58,39.44892706]
[1744565028402,7.597,131.63,131.58,39.44892706]
[1744565029384,0.03,131.66,131.62,39.44892706]
[1744565029582,0.03,131.66,131.63,39.44892706]
[1744565029891,0.03,131.66,131.62,39.44892706]
[1744565030188,0.03,131.66,131.57,26.6017]
[1744565030367,0.03,131.66,131.56,0.063]
[1744565030568,39.47892706,131.66,131.61,39.44892706]
[1744565030771,0.03,131.66,131.62,39.44892706]
[1744565030988,0.03,131.66,131.64,39.44892706]
[1744565031193,0.03,131.66,131.63,39.44892706]
[1744565031383,0.03,131.66,131.64,39.44892706]
[1744565031690,0.03,131.66,131.65,39.44892706]
[1744565032290,9.2546,131.72,131.65,39.44892706]
[1744565032291,0.03,131.72,131.65,39.44892706]
[1744565032590,0.03,131.72,131.71,39.44892706]
[1744565033180,0.03,131.72,131.66,26.5836]
[1744565033396,0.03,131.72,131.7,39.44892706]
[1744565033705,0.03,131.72,131.71,39.44892706]
[1744565034198,0.03,131.72,131.66,26.5836]
[1744565034395,0.03,131.72,131.7,39.44892706]
[1744565034887,0.03,131.72,131.66,18.9883]
[1744565034888,0.03,131.72,131.67,7.5942]
[1744565035086,0.03,131.72,131.69,39.44892706]
[1744565035283,39.47892706,131.72,131.67,39.44892706]
[1744565035597,0.03,131.72,131.67,39.44892706]
[1744565035899,39.44892706,131.71,131.66,39.44892706]
[1744565036589,47.04162706,131.71,131.66,39.44892706]
[1744565036787,39.44892706,131.69,131.63,39.44892706]
[1744565036971,7.5927,131.71,131.64,39.44892706]
[1744565037172,39.44892706,131.7,131.61,26.5937]
[1744565037368,0.03,131.72,131.68,39.44892706]
[1744565037573,0.03,131.72,131.63,18.79181043]
[1744565037574,0.03,131.72,131.69,39.44892706]
[1744565038992,39.47892706,131.72,131.67,39.44892706]
[1744565039197,39.47892706,131.72,131.66,39.44892706]
[1744565039580,39.44892706,131.71,131.65,7.5957]
[1744565039786,39.44892706,131.71,131.66,39.44892706]
[1744565039976,39.47892706,131.72,131.66,39.44892706]
[1744565040177,0.03,131.72,131.69,39.44892706]
[1744565040377,0.03,131.72,131.65,7.5957]
[1744565040575,0.03,131.72,131.68,39.44892706]
[1744565040801,0.03,131.72,131.67,39.44892706]
[1744565041579,47.07072706,131.72,131.63,26.5896]
[1744565041779,0.03,131.72,131.71,39.44892706]
[1744565041987,0.03,131.72,131.7,39.44892706]
[1744565042188,0.03,131.72,131.71,39.44892706]
[1744565042688,0.03,131.72,131.69,39.44892706]
[1744565042895,0.03,131.72,131.7,39.44892706]
[1744565043094,39.44892706,131.71,131.65,7.5958]
[1744565043403,39.44892706,131.71,131.66,39.44892706]
[1744565043701,39.44892706,131.71,131.65,39.44892706]
[1744565043885,0.03,131.72,131.66,39.44892706]
[1744565044088,0.03,131.72,131.71,39.44892706]
[1744565044680,0.03,131.72,131.71,47.04132706]
[1744565045304,0.0001,131.72,131.71,66.11746063]
[1744565045598,0.0001,131.72,131.71,47.04132706]
[1744565046192,0.0001,131.72,131.71,66.11746063]
[1744565046597,0.03,131.73,131.72,19.07613357]
[1744565046795,0.03,131.78,131.74,20.07613357]
[1744565046997,0.03,131.84,131.77,39.44892706]
[1744565047300,18.67964886,131.84,131.73,7.5912]
[1744565047606,39.44892706,131.81,131.76,39.44892706]
[1744565048001,39.44892706,131.82,131.73,7.5912]
[1744565048195,0.03,131.84,131.8,39.44892706]
[1744565048505,0.03,131.84,131.82,39.44892706]
[1744565048799,0.03,131.84,131.82,47.03502706]
[1744565049004,0.03,131.84,131.81,39.44892706]
[1744565049184,0.03,131.84,131.82,39.44892706]
[1744565049994,0.03,131.84,131.78,26.5594]
[1744565050395,0.03,131.84,131.82,39.44892706]
[1744565050989,0.03,131.84,131.82,47.03502706]
[1744565053986,0.0001,131.83,131.82,47.46151177]
[1744565054187,0.0001,131.84,131.83,0.42648471]
[1744565054387,0.03,131.86,131.83,97.97398769]
[1744565054587,0.03,131.86,131.85,39.44892706]
[1744565054995,0.03,131.86,131.85,47.03322706]
[1744565055205,0.03,131.86,131.85,47.45971177]
[1744565055407,0.03,131.89,131.85,66.42061177]
[1744565055608,0.03,131.89,131.88,39.44892706]
[1744565056504,0.03,131.89,131.85,26.97168471]
[1744565056706,0.03,131.89,131.88,39.44892706]
[1744565057101,0.03,131.89,131.88,47.03152706]
[1744565057690,0.03,131.89,131.83,7.5855]
[1744565057893,0.03,131.89,131.84,39.44892706]
[1744565058208,0.03,131.89,131.88,39.44892706]
[1744565058401,0.03,131.89,131.83,26.5493]
[1744565058701,0.03,131.89,131.88,39.44892706]
[1744565058886,0.03,131.89,131.88,58.52506063]
[1744565059092,0.03,131.89,131.88,47.03152706]
[1744565059609,41.09892706,131.97,131.89,0.28432314]
[1744565059610,0.03,131.97,131.89,0.28432314]
[1744565059789,0.03,131.97,131.93,39.44892706]
[1744565059989,0.03,131.97,131.94,39.44892706]
[1744565060592,39.44892706,131.96,131.91,39.44892706]
[1744565060793,0.03,131.97,131.91,39.44892706]
[1744565060794,0.03,131.95,131.91,39.44892706]
[1744565060993,0.03,131.95,131.9,39.44892706]
[1744565061199,47.02812706,131.94,131.89,39.44892706]
[1744565061594,7.6086,131.95,131.87,267.803]
[1744565061806,39.44892706,131.92,131.83,18.9637]
[1744565062006,39.44892706,131.92,131.87,39.44892706]
[1744565062311,39.44892706,131.91,131.84,7.5849]
[1744565062517,1.6282,131.94,131.85,39.44892706]
[1744565062819,39.44892706,131.93,131.87,39.44892706]
[1744565063122,39.44892706,131.92,131.87,39.44892706]
[1744565063611,39.44892706,131.93,131.87,39.44892706]
[1744565063813,7.5797,131.93,131.88,39.44892706]
[1744565064017,9.2076,131.94,131.9,39.44892706]
[1744565064709,1.6282,131.94,131.92,39.44892706]
[1744565064919,0.03,131.95,131.93,39.44892706]
[1744565065211,0.03,131.95,131.94,25.71040721]
[1744565066015,0.03,131.95,131.93,25.71040721]
[1744565066210,0.03,131.95,131.94,25.71040721]
[1744565066708,0.03,131.95,131.92,25.71040721]
[1744565066917,0.03,131.95,131.89,7.582]
[1744565067124,0.03,131.95,131.93,25.71040721]
[1744565067293,0.03,131.95,131.93,39.01801812]
[1744565067612,0.03,131.95,131.92,39.01801812]
[1744565068212,0.03,131.95,131.9,7.5809]
[1744565068516,0.03,131.95,131.92,39.01801812]
[1744565068733,0.03,131.95,131.9,39.01801812]
[1744565068905,39.01801812,131.91,131.78,1.0]
[1744565069212,39.01801812,131.92,131.81,11.45]
[1744565069715,7.5809,131.91,131.86,39.01801812]
[1744565071295,1.523,131.9,131.88,39.01801812]
[1744565071605,1.523,131.9,131.87,39.01801812]
[1744565071993,1.523,131.9,131.88,39.01801812]
[1744565072890,1.523,131.9,131.82,19.10736157]
[1744565073094,9.1047,131.9,131.85,39.01801812]
[1744565073295,9.1047,131.9,131.86,39.01801812]
[1744565073890,39.01801812,131.89,131.84,39.01801812]
[1744565074219,48.12271812,131.9,131.84,39.01801812]
[1744565074512,39.01801812,131.89,131.84,39.01801812]
[1744565074715,48.12271812,131.9,131.84,39.01801812]
[1744565075195,48.12271812,131.9,131.84,46.60271812]
[1744565075395,48.12271812,131.9,131.85,39.01801812]
[1744565075594,48.12271812,131.9,131.8,19.17186157]
[1744565075795,48.12271812,131.9,131.84,39.01801812]
[1744565076716,39.01801812,131.89,131.82,7.5859]
[1744565076906,39.01801812,131.89,131.84,39.01801812]
[1744565077803,46.60041812,131.89,131.84,39.01801812]
[1744565078027,7.5824,131.89,131.85,39.01801812]
[1744565078227,1.523,131.9,131.85,39.01801812]
[1744565078400,40.54101812,131.9,131.85,39.01801812]
[1744565078602,1.523,131.9,131.88,39.01801812]
[1744565078907,0.03,131.95,131.89,39.01801812]
[1744565079097,0.03,131.97,131.94,39.01801812]
[1744565079300,0.03,131.97,131.96,39.01801812]
[1744565079517,0.03,131.97,131.89,0.28432314]
[1744565079701,39.04801812,131.97,131.88,11.44]
[1744565079900,39.01801812,131.96,131.91,39.01801812]
[1744565080107,7.6074,131.97,131.92,39.01801812]
[1744565080304,46.62541812,131.97,131.89,7.582]
[1744565080509,39.04801812,131.97,131.91,39.01801812]
[1744565080801,46.62551812,131.97,131.91,39.01801812]
[1744565081020,46.62551812,131.97,131.92,39.01801812]
[1744565081221,39.01801812,131.96,131.89,7.582]
[1744565081398,39.01801812,131.96,131.9,39.01801812]
[1744565081604,46.62551812,131.97,131.92,39.01801812]
[1744565081803,39.01801812,131.96,131.91,39.01801812]
[1744565082104,39.01801812,131.95,131.87,7.5832]
[1744565082304,39.01801812,131.95,131.9,39.01801812]
[1744565082499,39.01801812,131.91,131.85,7.5839]
[1744565082698,39.01801812,131.9,131.85,39.01801812]
[1744565083019,39.01801812,131.9,131.84,7.5849]
[1744565083020,40.57481812,131.91,131.84,7.5849]
[1744565083215,40.57481812,131.91,131.86,39.01801812]
[1744565083412,1.5568,131.91,131.87,39.01801812]
[1744565083615,1.5568,131.91,131.86,39.01801812]
[1744565084128,1.5568,131.91,131.87,39.01801812]
[1744565084340,1.5568,131.91,131.9,39.01801812]
[1744565084931,1.5568,131.91,131.82,0.42648471]
[1744565084932,9.1379,131.91,131.87,39.01801812]
[1744565085309,1.5568,131.91,131.89,39.01801812]
[1744565086329,1.5568,131.91,131.82,7.5861]
[1744565086529,39.01801812,131.87,131.83,11.45]
[1744565086727,6.1389,131.9,131.83,11.45]
[1744565086728,39.01801812,131.84,131.83,11.45]
[1744565087712,39.01801812,131.84,131.8,0.063]
[1744565087907,39.01801812,131.83,131.8,0.063]
[1744565088312,26.0,131.87,131.8,0.063]
[1744565088511,39.01801812,131.83,131.8,0.063]
[1744565088927,39.01801812,131.85,131.8,39.08101812]
[1744565089125,39.01801812,131.84,131.8,0.063]
[1744565089710,39.01801812,131.82,131.8,0.063]
[1744565089913,39.01801812,131.83,131.8,0.063]
[1744565090538,7.5851,131.84,131.8,39.08101812]
[1744565090827,57.97821812,131.86,131.8,39.08101812]
[1744565090828,7.5845,131.85,131.8,39.08101812]
[1744565091034,46.60251812,131.85,131.8,0.063]
[1744565091537,39.01801812,131.84,131.8,0.063]
[1744565091846,7.5826,131.88,131.82,39.01801812]
[1744565092045,7.5826,131.88,131.84,39.01801812]
[1744565092856,7.5826,131.88,131.83,46.60331812]
[1744565093057,46.60061812,131.88,131.83,39.01801812]
[1744565093229,39.01801812,131.87,131.82,39.01801812]
[1744565093964,39.01801812,131.86,131.81,39.01801812]
[1744565094637,7.5843,131.85,131.8,50.53101812]
[1744565094941,7.5843,131.85,131.81,39.01801812]
[1744565095785,7.5843,131.85,131.8,50.53101812]
[1744565095932,46.60231812,131.85,131.8,50.53101812]
[1744565096251,46.60231812,131.85,131.8,11.513]
[1744565096252,39.01801812,131.84,131.8,11.513]
[1744565096435,46.60231812,131.85,131.8,11.513]
[1744565097226,18.9565,131.89,131.81,25.77629688]
[1744565097537,25.77629688,131.87,131.81,25.77629688]
[1744565097738,25.77629688,131.86,131.81,25.77629688]
[1744565097941,25.77629688,131.86,131.8,37.28929688]
[1744565098146,33.35889688,131.88,131.83,25.77629688]
[1744565098332,25.77629688,131.87,131.81,25.77629688]
[1744565098532,7.5838,131.86,131.81,25.77629688]
[1744565098751,33.36009688,131.86,131.81,25.77629688]
[1744565099452,7.5838,131.86,131.81,33.36269688]
[1744565099642,6.1389,131.9,131.84,25.77629688]
[1744565099839,7.5823,131.89,131.85,25.77629688]
[1744565100338,33.35859688,131.89,131.81,7.5864]
[1744565100653,25.77629688,131.87,131.82,11.45]
[1744565100838,25.77629688,131.85,131.82,11.45]
[1744565101039,25.77629688,131.83,131.82,11.45]
[1744565101556,101.54964886,131.88,131.82,11.45]
[1744565101761,25.77629688,131.85,131.8,0.063]
[1744565102054,25.77629688,131.85,131.8,11.513]
[1744565102242,25.77629688,131.86,131.8,44.87639688]
[1744565102438,25.77629688,131.85,131.8,11.513]
[1744565102660,7.5855,131.83,131.8,11.513]
[1744565102839,33.36179688,131.83,131.8,11.513]
[1744565103033,26.5493,131.83,131.8,11.513]
[1744565103259,25.77629688,131.81,131.8,11.513]
[1744565103934,25.77629688,131.82,131.8,11.513]
[1744565104133,25.77629688,131.82,131.8,0.063]
[1744565104853,33.36289688,131.81,131.8,0.063]
[1744565105029,25.77629688,131.83,131.8,0.063]
[1744565105234,33.36059688,131.85,131.8,25.83929688]
[1744565105446,7.5843,131.85,131.8,25.83929688]
[1744565105643,25.77629688,131.82,131.8,0.063]
[1744565105848,7.5843,131.85,131.8,0.063]
[1744565106050,25.77629688,131.82,131.8,0.063]
[1744565106352,25.77629688,131.81,131.8,0.063]
[1744565106736,33.36289688,131.81,131.8,0.063]
[1744565107140,1.5844,131.8,131.79,0.613]
[1744565107348,27.36069688,131.8,131.79,0.613]
[1744565107544,27.36069688,131.8,131.75,0.063]
[1744565107545,18.64964886,131.79,131.75,0.063]
[1744565107746,24.93864886,131.79,131.75,0.063]
[1744565107950,25.77629688,131.76,131.75,0.063]
[1744565108866,33.36579688,131.76,131.75,7.023]
[1744565109869,33.36579688,131.76,131.75,0.063]
[1744565110076,52.01544574,131.76,131.75,0.0001]
[1744565110265,77.79174262,131.76,131.74,0.063]
[1744565110445,44.42594574,131.75,131.74,0.063]
[1744565110863,18.64964886,131.74,131.71,0.063]
[1744565111162,44.42594574,131.73,131.71,0.063]
[1744565111570,25.77629688,131.72,131.71,0.063]
[1744565112850,26.0,131.69,131.68,0.063]
[1744565113051,26.0,131.69,131.66,0.063]
[1744565113052,70.56810731,131.69,131.66,0.063]
[1744565113275,44.42594574,131.67,131.66,0.063]
[1744565113478,25.77629688,131.68,131.66,0.063]
[1744565113647,25.77629688,131.67,131.66,0.063]
[1744565114443,25.77629688,131.67,131.6,0.063]
[1744565114664,25.77629688,131.64,131.61,10.94]
[1744565114972,33.37389688,131.62,131.61,10.94]
[1744565115473,52.02354574,131.62,131.61,10.94]
[1744565116167,52.02354574,131.62,131.6,0.063]
[1744565116168,18.64964886,131.61,131.59,0.063]
[1744565116361,18.64964886,131.59,131.56,0.063]
[1744565116670,71.78984262,131.6,131.56,0.063]
[1744565116671,25.77629688,131.57,131.56,0.063]
[1744565116866,33.37679688,131.57,131.56,0.063]
[1744565117270,26.6017,131.57,131.51,0.063]
[1744565117465,39.27719378,131.55,131.51,0.063]
[1744565118067,57.92684264,131.55,131.51,0.063]
[1744565118260,39.27719378,131.53,131.51,0.063]
[1744565118861,26.25304886,131.52,131.46,0.063]
[1744565119070,7.6034,131.52,131.46,0.063]
[1744565119255,39.27719378,131.49,131.46,0.063]
[1744565119572,39.27719378,131.51,131.46,39.34019378]
[1744565119778,39.27719378,131.5,131.46,0.063]
[1744565120372,7.6034,131.52,131.47,39.27719378]
[1744565120574,46.88059378,131.52,131.47,39.27719378]
[1744565120781,39.27719378,131.51,131.46,39.34019378]
[1744565120980,46.88149378,131.51,131.46,39.34019378]
[1744565121978,7.6043,131.51,131.46,39.34019378]
[1744565122558,46.88149378,131.51,131.46,39.34019378]
[1744565122783,7.6033,131.53,131.48,39.27719378]
[1744565122965,46.88049378,131.53,131.48,39.27719378]
[1744565123162,39.27719378,131.51,131.46,39.34019378]
[1744565123374,39.27719378,131.49,131.46,0.063]
[1744565123857,39.27719378,131.48,131.46,0.063]
[1744565124058,39.27719378,131.49,131.46,0.063]
[1744565124368,39.27719378,131.48,131.46,0.063]
[1744565124783,26.6103,131.53,131.46,0.063]
[1744565124981,18.64964886,131.55,131.48,39.27719378]
[1744565125163,39.27719378,131.53,131.48,39.27719378]
[1744565125883,7.6005,131.57,131.47,7.606]
[1744565126183,45.25134886,131.57,131.5,39.27719378]
[1744565126383,7.6005,131.57,131.53,39.27719378]
[1744565126574,46.87719378,131.58,131.53,39.27719378]
[1744565126876,26.9928,131.6,131.47,26.6217]
[1744565126877,46.87809378,131.57,131.52,39.27719378]
[1744565127079,46.87729378,131.58,131.53,39.27719378]
[1744565127577,39.27719378,131.57,131.52,39.27719378]
[1744565127777,39.27719378,131.57,131.48,26.6199]
[1744565127984,39.27719378,131.57,131.51,39.27719378]
[1744565128179,39.27719378,131.55,131.47,7.6062]
[1744565128379,39.27719378,131.54,131.47,7.6062]
[1744565128588,39.27719378,131.54,131.49,39.27719378]
[1744565128771,39.27719378,131.55,131.5,39.27719378]
[1744565128966,39.27719378,131.55,131.47,7.6062]
[1744565129161,7.74146157,131.59,131.47,26.6219]
[1744565129366,39.27719378,131.57,131.52,39.27719378]
[1744565129770,39.27719378,131.56,131.51,39.27719378]